fUSD/lending_fUSD_20241110
["ID","MTS","AMOUNT","RATE_DAILY","PERIOD"]
[341908996,1731278869105,-654.06,0.00014788,2]
[341908997,1731278869143,-654.06,0.00014788,2]
[341908998,1731278869182,-654.06,0.00014788,2]
[341908999,1731278869223,-654.06,0.00014788,2]
[341909000,1731278869260,-654.06510478,0.00014788,2]
[341909001,1731278869297,-715.19,0.00014788,2]
[341909002,1731278869335,-715.19,0.00014788,2]
[341909003,1731278869375,-715.19,0.00014788,2]
[341909004,1731278869412,-715.19,0.00014788,2]
[341909005,1731278869448,-715.19,0.00014788,2]
[341909006,1731278869486,-715.39477439,0.00014788,2]
[341909007,1731278869525,-500.0,0.00014788,2]
[341909008,1731278869566,-352.8315346,0.00014788,2]
[341909009,1731278869606,-500.0,0.00014788,2]
[341909010,1731278869643,-500.0,0.00014788,2]
[341909011,1731278869683,-500.0,0.00014788,2]
[341909012,1731278869720,-500.0,0.00014788,2]
[341909013,1731278869756,-607.7883592,0.00014788,2]
[341909014,1731278869795,-551.32,0.00014788,2]
[341909015,1731278869832,-551.32,0.00014788,2]
[341909016,1731278869869,-151.0,0.00014788,2]
[341909017,1731278869907,-154.870886,0.00014788,2]
[341909018,1731278869948,-1949.84,0.00014788,2]
[341909019,1731278869991,-702.12,0.00014788,2]
[341909020,1731278870030,-184.693461,0.00014788,2]
[341909021,1731278870066,-184.693461,0.00014788,2]
[341909022,1731278870108,-967.86,0.00014788,2]
[341909023,1731278870146,-967.86,0.00014788,2]
[341909024,1731278870183,-245.716273,0.00014788,2]
[341909025,1731278870221,-245.716273,0.00014788,2]
[341909026,1731278870259,-434.845613,0.00014788,2]
[341909027,1731278870301,-434.845613,0.00014788,2]
[341909028,1731278870341,-500.0,0.00014788,2]
[341909029,1731278870381,-500.0,0.00014788,2]
[341909030,1731278870425,-271.47887653,0.00014788,2]
[341909031,1731278870466,-938.43,0.00014788,2]
[341909032,1731278870507,-938.43,0.00014788,2]
[341909033,1731278870546,-938.43,0.00014788,2]
[341909034,1731278870587,-938.43,0.00014788,2]
[341909035,1731278870628,-938.43,0.00014788,2]
[341909036,1731278870673,-938.59819141,0.00014788,2]
[341909037,1731278870712,-1250.84,0.00014788,2]
[341909038,1731278870752,-1250.84,0.00014788,2]
[341909039,1731278870793,-1250.84,0.00014788,2]
[341909040,1731278870833,-1250.84,0.00014788,2]
[341909041,1731278870877,-1250.84,0.00014788,2]
[341909042,1731278870920,-1250.86071282,0.00014788,2]
[341909043,1731278870962,-1290.85,0.00014788,2]
[341909044,1731278871006,-1290.85,0.00014788,2]
[341909045,1731278871047,-1290.85,0.00014788,2]
[341909046,1731278871089,-1290.85,0.00014788,2]
[341909047,1731278871145,-1290.85,0.00014788,2]
[341909048,1731278871186,-1290.9956742,0.00014788,2]
[341909049,1731278871227,-561.32,0.00014788,2]
[341909050,1731278871270,-561.32,0.00014788,2]
[341909051,1731278871309,-561.32,0.00014788,2]
[341909052,1731278871351,-561.32,0.00014788,2]
[341909053,1731278871392,-561.32,0.00014788,2]
[341909054,1731278871434,-561.54,0.00014788,2]
[341909055,1731278871476,-151.0,0.00014788,2]
[341909056,1731278871523,-984.11,0.00014788,2]
[341909057,1731278871568,-984.11,0.00014788,2]
[341909058,1731278871618,-984.11,0.00014788,2]
[341909059,1731278871666,-984.11,0.00014788,2]
[341909060,1731278871712,-984.11,0.00014788,2]
[341909061,1731278871757,-984.20853123,0.00014788,2]
[341909062,1731278871802,-500.0,0.00014788,2]
[341909063,1731278871846,-646.83672475,0.00014788,2]
[341909064,1731278871885,-931.24,0.00014788,2]
[341909065,1731278871992,-931.24,0.00014788,2]
[341909066,1731278872034,-931.24,0.00014788,2]
[341909067,1731278872077,-931.24,0.00014788,2]
[341909068,1731278872120,-931.24,0.00014788,2]
[341909069,1731278872162,-931.38704283,0.00014788,2]
[341909070,1731278872204,-500.0,0.00014788,2]
[341909071,1731278872243,-500.0,0.00014788,2]
[341909072,1731278872284,-404.29902793,0.00014788,2]
[341909073,1731278872326,-1532.41,0.00014788,2]
[341909074,1731278872371,-1532.41,0.00014788,2]
[341909075,1731278872412,-3225.52,0.00014788,2]
[341909076,1731278872454,-510.31,0.00014788,2]
[341909077,1731278872497,-510.31,0.00014788,2]
[341909078,1731278872539,-510.31,0.00014788,2]
[341909079,1731278872584,-510.31,0.00014788,2]
[341909080,1731278872628,-510.31,0.00014788,2]
[341909081,1731278872669,-510.32024882,0.00014788,2]
[341909082,1731278872712,-2811.68,0.00014788,2]
[341909083,1731278872752,-874.83,0.00014788,2]
[341909084,1731278872794,-874.83,0.00014788,2]
[341909085,1731278872837,-874.83,0.00014788,2]
[341909086,1731278872879,-874.83,0.00014788,2]
[341909087,1731278872924,-874.83,0.00014788,2]
[341909088,1731278872968,-874.97,0.00014788,2]
[341909089,1731278873009,-1538.39,0.00014788,2]
[341909090,1731278873050,-1538.39,0.00014788,2]
[341909091,1731278873090,-611.86,0.00014788,2]
[341909092,1731278873131,-611.86,0.00014788,2]
[341909093,1731278873172,-611.86,0.00014788,2]
[341909094,1731278873215,-611.86,0.00014788,2]
[341909095,1731278873256,-611.86,0.00014788,2]
[341909096,1731278873300,-611.89625921,0.00014788,2]
[341909097,1731278873341,-7818.54,0.00014788,2]
[341909098,1731278873384,-7818.54,0.00014788,2]
[341909099,1731278873429,-7818.54,0.00014788,2]
[341909100,1731278873475,-7818.54,0.00014788,2]
[341909101,1731278873518,-7818.54,0.00014788,2]
[341909102,1731278873563,-7818.56861891,0.00014788,2]
[341909103,1731278873608,-500.0,0.00014788,2]
[341909104,1731278873651,-3168.53,0.00014788,2]
[341909105,1731278873692,-3168.53,0.00014788,2]
[341909106,1731278873735,-963.13,0.00014788,2]
[341909107,1731278873776,-1510.8,0.00014788,2]
[341909108,1731278873819,-1510.8,0.00014788,2]
[341909109,1731278873861,-1763.155735,0.00014788,2]
[341909110,1731278873901,-1763.155735,0.00014788,2]
[341909111,1731278873942,-1510.8,0.00014788,2]
[341909112,1731278873985,-1510.8,0.00014788,2]
[341909113,1731278874028,-1510.8,0.00014788,2]
[341909114,1731278874070,-1510.9135267,0.00014788,2]
[341909115,1731278874113,-601.16309479,0.00014788,2]
[341909116,1731278874157,-1763.155735,0.00014788,2]
[341909117,1731278874198,-1763.155735,0.00014788,2]
[341909118,1731278874242,-958.02,0.00014788,2]
[341909119,1731278874283,-3693.83,0.00014788,2]
[341909120,1731278874327,-500.0,0.00014788,2]
[341909121,1731278874372,-1861.49,0.00014788,2]
[341909122,1731278874415,-1861.49,0.00014788,2]
[341909123,1731278874460,-1861.49,0.00014788,2]
[341909124,1731278874503,-1861.49,0.00014788,2]
[341909125,1731278874544,-1861.49,0.00014788,2]
[341909126,1731278874586,-1861.69314676,0.00014788,2]
[341909127,1731278874630,-915.49,0.00014788,2]
[341909128,1731278874671,-500.0,0.00014788,2]
[341909129,1731278874711,-243.01457932,0.00014788,2]
[341909130,1731278874754,-1525.77,0.00014788,2]
[341909131,1731278874794,-3466.84,0.00014788,2]
[341909132,1731278874836,-3466.84,0.00014788,2]
[341909133,1731278874878,-3466.84,0.00014788,2]
[341909134,1731278874921,-2156.1,0.00014788,2]
[341909135,1731278874969,-3466.84,0.00014788,2]
[341909136,1731278875010,-3466.84,0.00014788,2]
[341909137,1731278875053,-3467.01161363,0.00014788,2]
[341909138,1731278875093,-4193.4,0.00014788,2]
[341909139,1731278875136,-171.848175,0.00014788,2]
[341909140,1731278875177,-171.848175,0.00014788,2]
[341909141,1731278875218,-500.0,0.00014788,2]
[341909142,1731278875260,-171.848175,0.00014788,2]
[341909143,1731278875304,-171.848175,0.00014788,2]
[341909144,1731278875345,-500.0,0.00014788,2]
[341909145,1731278875387,-500.0,0.00014788,2]
[341909146,1731278875432,-500.0,0.00014788,2]
[341909147,1731278875470,-500.0,0.00014788,2]
[341909148,1731278875519,-500.0,0.00014788,2]
[341909149,1731278875564,-240.92228471,0.00014788,2]
[341909150,1731278875608,-500.0,0.00014788,2]
[341909151,1731278875651,-1629.54,0.00014788,2]
[341909152,1731278875694,-4813.23,0.00014788,2]
[341909153,1731278875735,-500.0,0.00014788,2]
[341909154,1731278875777,-2467.4,0.00014788,2]
[341909155,1731278875817,-500.0,0.00014788,2]
[341909156,1731278875861,-500.0,0.00014788,2]
[341909157,1731278875903,-481.54,0.00014788,2]
[341909158,1731278875947,-500.0,0.00014788,2]
[341909159,1731278875997,-500.0,0.00014788,2]
[341909160,1731278876046,-500.0,0.00014788,2]
[341909161,1731278876090,-500.0,0.00014788,2]
[341909162,1731278876131,-3067.03,0.00014788,2]
[341909163,1731278876172,-500.0,0.00014788,2]
[341909164,1731278876215,-186.93,0.00014788,2]
[341909165,1731278876258,-500.0,0.00014788,2]
[341909166,1731278876296,-500.0,0.00014788,2]
[341909167,1731278876341,-706.1,0.00014788,2]
[341909168,1731278876380,-1061.01,0.00014788,2]
[341909169,1731278876423,-1856.16,0.00014788,2]
[341909170,1731278876467,-1856.16,0.00014788,2]
[341909171,1731278876510,-1856.16,0.00014788,2]
[341909172,1731278876553,-1856.16,0.00014788,2]
[341909173,1731278876593,-507.12,0.00014788,2]
[341909174,1731278876634,-1856.16,0.00014788,2]
[341909175,1731278876674,-1856.39114472,0.00014788,2]
[341909176,1731278876716,-1812.59,0.00014788,2]
[341909177,1731278876760,-1465.91,0.00014788,2]
[341909178,1731278876802,-854.99,0.00014788,2]
[341909179,1731278876843,-500.0,0.00014788,2]
[341909180,1731278876887,-777.21,0.00014788,2]
[341909181,1731278876929,-809.35,0.00014788,2]
[341909182,1731278876973,-809.35,0.00014788,2]
[341909183,1731278877014,-809.35,0.00014788,2]
[341909184,1731278877051,-809.35,0.00014788,2]
[341909185,1731278877091,-809.35,0.00014788,2]
[341909186,1731278877130,-809.40879044,0.00014788,2]
[341909187,1731278877168,-1294.49,0.00014788,2]
[341909188,1731278877207,-549.04,0.00014788,2]
[341909189,1731278877246,-500.0,0.00014788,2]
[341909190,1731278877286,-5965.76,0.00014788,2]
[341909191,1731278877326,-2564.31,0.00014788,2]
[341909192,1731278877367,-902.82,0.00014788,2]
[341909193,1731278877405,-902.82,0.00014788,2]
[341909194,1731278877444,-1218.42,0.00014788,2]
[341909195,1731278877483,-2585.68,0.00014788,2]
[341909196,1731278877519,-950.13,0.00014788,2]
[341909197,1731278877557,-950.13,0.00014788,2]
[341909198,1731278877597,-950.13,0.00014788,2]
[341909199,1731278877634,-950.13,0.00014788,2]
[341909200,1731278877673,-950.13,0.00014788,2]
[341909201,1731278877710,-950.28,0.00014788,2]
[341909202,1731278877747,-500.0,0.00014788,2]
[341909203,1731278877785,-500.0,0.00014788,2]
[341909204,1731278877821,-663.06,0.00014788,2]
[341909205,1731278877858,-500.0,0.00014788,2]
[341909206,1731278877900,-639.14,0.00014788,2]
[341909207,1731278877937,-1447.43,0.00014788,2]
[341909208,1731278877974,-1447.43,0.00014788,2]
[341909209,1731278878012,-1447.43,0.00014788,2]
[341909210,1731278878050,-1447.43,0.00014788,2]
[341909211,1731278878091,-1447.43,0.00014788,2]
[341909212,1731278878128,-151.0,0.00014788,2]
[341909213,1731278878164,-4382.39,0.00014788,2]
[341909214,1731278878205,-1447.53280268,0.00014788,2]
[341909215,1731278878244,-151.0,0.00014788,2]
[341909216,1731278878283,-3061.89,0.00014788,2]
[341909217,1731278878330,-500.0,0.00014788,2]
[341909218,1731278878373,-1328.09,0.00014788,2]
[341909219,1731278878416,-1328.09,0.00014788,2]
[341909220,1731278878462,-1328.09,0.00014788,2]
[341909221,1731278878504,-1328.09,0.00014788,2]
[341909222,1731278878546,-1328.09,0.00014788,2]
[341909223,1731278878589,-652.93,0.00014788,2]
[341909224,1731278878631,-1328.15,0.00014788,2]
[341909225,1731278878672,-500.0,0.00014788,2]
[341909226,1731278878714,-500.0,0.00014788,2]
[341909227,1731278878754,-4010.54,0.00014788,2]
[341909228,1731278878794,-1210.09,0.00014788,2]
[341909229,1731278878833,-1210.09,0.00014788,2]
[341909230,1731278878877,-1210.09,0.00014788,2]
[341909231,1731278878919,-1210.09,0.00014788,2]
[341909232,1731278878964,-1210.09,0.00014788,2]
[341909233,1731278879006,-1210.10538859,0.00014788,2]
[341909234,1731278879048,-500.0,0.00014788,2]
[341909235,1731278879093,-799.69,0.00014788,2]
[341909236,1731278879135,-648.2,0.00014788,2]
[341909237,1731278879176,-648.2,0.00014788,2]
[341909238,1731278879219,-648.2,0.00014788,2]
[341909239,1731278879261,-648.2,0.00014788,2]
[341909240,1731278879303,-648.2,0.00014788,2]
[341909241,1731278879345,-648.35190381,0.00014788,2]
[341909242,1731278879385,-500.0,0.00014788,2]
[341909243,1731278879428,-219.43042945,0.00014788,2]
[341909244,1731278879470,-500.0,0.00014788,2]
[341909245,1731278879520,-562.77,0.00014788,2]
[341909246,1731278879577,-5215.02,0.00014788,2]
[341909247,1731278879627,-8777.91,0.00014788,2]
[341909248,1731278879675,-663.42,0.00014788,2]
[341909249,1731278879722,-1247.34,0.00014788,2]
[341909250,1731278879768,-1247.34,0.00014788,2]
[341909251,1731278879815,-1247.34,0.00014788,2]
[341909252,1731278879860,-1247.34,0.00014788,2]
[341909253,1731278879902,-1247.34,0.00014788,2]
[341909254,1731278879942,-1247.55653241,0.00014788,2]
[341909255,1731278879986,-2289.82,0.00014788,2]
[341909256,1731278880028,-500.0,0.00014788,2]
[341909257,1731278880072,-151.88084331,0.00014789,2]
[341909258,1731278880115,-500.0,0.00014789,2]
[341909259,1731278880164,-1523.46,0.00014789,2]
[341909260,1731278880210,-629.8,0.00014789,2]
[341909261,1731278880254,-500.0,0.00014789,2]
[341909262,1731278880300,-500.0,0.00014789,2]
[341909263,1731278880345,-500.0,0.00014789,2]
[341909264,1731278880389,-500.0,0.00014789,2]
[341909265,1731278880433,-500.0,0.00014789,2]
[341909266,1731278880478,-500.0,0.00014789,2]
[341909267,1731278880522,-264.570974,0.00014789,2]
[341909268,1731278880565,-634.709851,0.00014789,2]
[341909269,1731278880609,-151.0,0.00014789,2]
[341909270,1731278880652,-151.0,0.00014789,2]
[341909271,1731278880695,-151.0,0.00014789,2]
[341909272,1731278880739,-551.32,0.00014789,2]
[341909273,1731278880789,-551.32,0.00014789,2]
[341909274,1731278880839,-551.32,0.00014789,2]
[341909275,1731278880881,-551.32,0.00014789,2]
[341909276,1731278880927,-551.32,0.00014789,2]
[341909277,1731278880972,-551.36545451,0.00014789,2]
[341909278,1731278881015,-151.0,0.00014789,2]
[341909279,1731278881055,-151.0,0.00014789,2]
[341909280,1731278881095,-1949.84,0.00014789,2]
[341909281,1731278881137,-1949.84,0.00014789,2]
[341909282,1731278881177,-1949.84,0.00014789,2]
[341909283,1731278881217,-702.12,0.00014789,2]
[341909284,1731278881258,-702.12,0.00014789,2]
[341909285,1731278881301,-702.12,0.00014789,2]
[341909286,1731278881348,-184.693461,0.00014789,2]
[341909287,1731278881406,-184.693461,0.00014789,2]
[341909288,1731278881454,-184.693461,0.00014789,2]
[341909289,1731278881508,-184.693461,0.00014789,2]
[341909290,1731278881566,-967.86,0.00014789,2]
[341909291,1731278881612,-967.86,0.00014789,2]
[341909292,1731278881658,-967.86,0.00014789,2]
[341909293,1731278881704,-967.86,0.00014789,2]
[341909294,1731278881747,-967.86,0.00014789,2]
[341909295,1731278881791,-967.97,0.00014789,2]
[341909296,1731278881835,-245.716273,0.00014789,2]
[341909297,1731278881880,-245.716273,0.00014789,2]
[341909298,1731278881926,-245.716273,0.00014789,2]
[341909299,1731278881970,-245.716273,0.00014789,2]
[341909300,1731278882012,-434.845613,0.00014789,2]
[341909301,1731278882055,-434.845613,0.00014789,2]
[341909302,1731278882099,-434.845613,0.00014789,2]
[341909303,1731278882142,-434.845613,0.00014789,2]
[341909304,1731278882184,-156.116647,0.00014789,2]
[341909305,1731278882566,-1532.41,0.00014789,2]
[341909306,1731278882626,-1532.41,0.00014789,2]
[341909307,1731278882668,-1532.41,0.00014789,2]
[341909308,1731278882709,-1532.41,0.00014789,2]
[341909309,1731278882750,-1532.41,0.00014789,2]
[341909310,1731278882795,-1532.5771349,0.00014789,2]
[341909311,1731278882839,-3225.52,0.00014789,2]
[341909312,1731278882881,-3225.52,0.00014789,2]
[341909313,1731278882930,-3225.52,0.00014789,2]
[341909314,1731278882975,-2811.68,0.00014789,2]
[341909315,1731278883020,-2811.68,0.00014789,2]
[341909316,1731278883066,-1538.39,0.00014789,2]
[341909317,1731278883109,-1538.39,0.00014789,2]
[341909318,1731278883157,-1538.39,0.00014789,2]
[341909319,1731278883201,-1538.39,0.00014789,2]
[341909320,1731278883246,-1538.39,0.00014789,2]
[341909321,1731278883289,-1538.52002868,0.00014789,2]
[341909322,1731278883338,-500.0,0.00014789,2]
[341909323,1731278883387,-500.0,0.00014789,2]
[341909324,1731278883434,-3168.53,0.00014789,2]
[341909325,1731278883483,-963.13,0.00014789,2]
[341909326,1731278883530,-3168.53,0.00014789,2]
[341909327,1731278883575,-3168.53,0.00014789,2]
[341909328,1731278883624,-963.13,0.00014789,2]
[341909329,1731278883670,-3168.53,0.00014789,2]
[341909330,1731278883713,-963.13,0.00014789,2]
[341909331,1731278883756,-3168.53,0.00014789,2]
[341909332,1731278883801,-1763.155735,0.00014789,2]
[341909333,1731278883846,-3168.65106849,0.00014789,2]
[341909334,1731278883887,-1763.155735,0.00014789,2]
[341909335,1731278883939,-958.02,0.00014789,2]
[341909336,1731278883982,-958.02,0.00014789,2]
[341909337,1731278884029,-3693.83,0.00014789,2]
[341909338,1731278884072,-3693.83,0.00014789,2]
[341909339,1731278884120,-3693.83,0.00014789,2]
[341909340,1731278884165,-500.0,0.00014789,2]
[341909341,1731278884210,-500.0,0.00014789,2]
[341909342,1731278884256,-915.49,0.00014789,2]
[341909343,1731278884302,-915.49,0.00014789,2]
[341909344,1731278884351,-915.49,0.00014789,2]
[341909345,1731278884393,-1525.77,0.00014789,2]
[341909346,1731278884437,-1525.77,0.00014789,2]
[341909347,1731278884480,-1525.77,0.00014789,2]
[341909348,1731278884523,-2156.1,0.00014789,2]
[341909349,1731278884566,-2156.1,0.00014789,2]
[341909350,1731278884609,-4193.4,0.00014789,2]
[341909351,1731278884653,-4193.4,0.00014789,2]
[341909352,1731278884696,-4193.4,0.00014789,2]
[341909353,1731278884738,-171.848175,0.00014789,2]
[341909354,1731278884778,-500.0,0.00014789,2]
[341909355,1731278884820,-500.0,0.00014789,2]
[341909356,1731278884861,-171.848175,0.00014789,2]
[341909357,1731278884903,-500.0,0.00014789,2]
[341909358,1731278884945,-1629.54,0.00014789,2]
[341909359,1731278884988,-500.0,0.00014789,2]
[341909360,1731278885032,-1629.54,0.00014789,2]
[341909361,1731278885074,-1629.54,0.00014789,2]
[341909362,1731278885119,-4813.23,0.00014789,2]
[341909363,1731278885163,-4813.23,0.00014789,2]
[341909364,1731278885210,-500.0,0.00014789,2]
[341909365,1731278885255,-2467.4,0.00014789,2]
[341909366,1731278885301,-500.0,0.00014789,2]
[341909367,1731278885342,-2467.4,0.00014789,2]
[341909368,1731278885389,-2467.4,0.00014789,2]
[341909369,1731278885430,-3067.03,0.00014789,2]
[341909370,1731278885471,-3067.03,0.00014789,2]
[341909371,1731278885513,-500.0,0.00014789,2]
[341909372,1731278885553,-588.06177267,0.00014789,2]
[341909373,1731278885591,-395.35955783,0.00014789,2]
[341909374,1731278885636,-706.1,0.00014789,2]
[341909375,1731278885676,-706.1,0.00014789,2]
[341909376,1731278885717,-706.1,0.00014789,2]
[341909377,1731278885757,-1061.01,0.00014789,2]
[341909378,1731278885798,-1061.01,0.00014789,2]
[341909379,1731278885837,-507.12,0.00014789,2]
[341909380,1731278885879,-507.12,0.00014789,2]
[341909381,1731278885918,-1812.59,0.00014789,2]
[341909382,1731278885959,-1812.59,0.00014789,2]
[341909383,1731278886003,-1812.59,0.00014789,2]
[341909384,1731278886043,-1465.91,0.00014789,2]
[341909385,1731278886081,-1465.91,0.00014789,2]
[341909386,1731278886125,-854.99,0.00014789,2]
[341909387,1731278886163,-500.0,0.00014789,2]
[341909388,1731278886202,-854.99,0.00014789,2]
[341909389,1731278886247,-500.0,0.00014789,2]
[341909390,1731278886285,-854.99,0.00014789,2]
[341909391,1731278886328,-777.21,0.00014789,2]
[341909392,1731278886371,-777.21,0.00014789,2]
[341909393,1731278886411,-1294.49,0.00014789,2]
[341909394,1731278886451,-1294.49,0.00014789,2]
[341909395,1731278886494,-549.04,0.00014789,2]
[341909396,1731278886535,-549.04,0.00014789,2]
[341909397,1731278886575,-500.0,0.00014789,2]
[341909398,1731278886617,-549.04,0.00014789,2]
[341909399,1731278886709,-500.0,0.00014789,2]
[341909400,1731278886754,-5965.76,0.00014789,2]
[341909401,1731278886799,-5965.76,0.00014789,2]
[341909402,1731278886842,-5965.76,0.00014789,2]
[341909403,1731278886886,-2564.31,0.00014789,2]
[341909404,1731278886934,-2564.31,0.00014789,2]
[341909405,1731278886978,-2564.31,0.00014789,2]
[341909406,1731278887019,-902.82,0.00014789,2]
[341909407,1731278887058,-902.82,0.00014789,2]
[341909408,1731278887096,-902.82,0.00014789,2]
[341909409,1731278887139,-902.82,0.00014789,2]
[341909410,1731278887176,-902.82,0.00014789,2]
[341909411,1731278887213,-902.88,0.00014789,2]
[341909412,1731278887250,-2585.68,0.00014789,2]
[341909413,1731278887286,-2585.68,0.00014789,2]
[341909414,1731278887324,-2585.68,0.00014789,2]
[341909415,1731278887363,-500.0,0.00014789,2]
[341909416,1731278887402,-500.0,0.00014789,2]
[341909417,1731278887442,-500.0,0.00014789,2]
[341909418,1731278887481,-500.0,0.00014789,2]
[341909419,1731278887519,-663.06,0.00014789,2]
[341909420,1731278887561,-663.06,0.00014789,2]
[341909421,1731278887603,-500.0,0.00014789,2]
[341909422,1731278887646,-500.0,0.00014789,2]
[341909423,1731278887690,-639.14,0.00014789,2]
[341909424,1731278887735,-639.14,0.00014789,2]
[341909425,1731278887783,-4382.39,0.00014789,2]
[341909426,1731278887825,-4382.39,0.00014789,2]
[341909427,1731278887867,-4382.39,0.00014789,2]
[341909428,1731278887908,-3061.89,0.00014789,2]
[341909429,1731278887948,-3061.89,0.00014789,2]
[341909430,1731278887989,-3061.89,0.00014789,2]
[341909431,1731278888030,-652.93,0.00014789,2]
[341909432,1731278888072,-652.93,0.00014789,2]
[341909433,1731278888116,-500.0,0.00014789,2]
[341909434,1731278888166,-4010.54,0.00014789,2]
[341909435,1731278888211,-4010.54,0.00014789,2]
[341909436,1731278888256,-4010.54,0.00014789,2]
[341909437,1731278888300,-799.69,0.00014789,2]
[341909438,1731278888344,-799.69,0.00014789,2]
[341909439,1731278888391,-5215.02,0.00014789,2]
[341909440,1731278888437,-5215.02,0.00014789,2]
[341909441,1731278888480,-8777.91,0.00014789,2]
[341909442,1731278888525,-8777.91,0.00014789,2]
[341909443,1731278888579,-8777.91,0.00014789,2]
[341909444,1731278888627,-2289.82,0.00014789,2]
[341909445,1731278888671,-2289.82,0.00014789,2]
[341909446,1731278888715,-2289.82,0.00014789,2]
[341909447,1731278888758,-500.0,0.00014789,2]
[341909448,1731278888801,-500.0,0.00014789,2]
[341909449,1731278888845,-500.0,0.0001479,2]
[341909450,1731278888892,-500.0,0.0001479,2]
[341909451,1731278888938,-500.0,0.0001479,2]
[341909452,1731278888980,-500.0,0.0001479,2]
[341909453,1731278889024,-1523.46,0.0001479,2]
[341909454,1731278889065,-1523.46,0.0001479,2]
[341909455,1731278889107,-1523.46,0.0001479,2]
[341909456,1731278889150,-1523.46,0.0001479,2]
[341909457,1731278889193,-629.8,0.0001479,2]
[341909458,1731278889239,-629.8,0.0001479,2]
[341909459,1731278889279,-629.8,0.0001479,2]
[341909460,1731278889320,-629.8,0.0001479,2]
[341909461,1731278889361,-421.89719439,0.0001479,2]
[341909462,1731278889400,-500.0,0.0001479,2]
[341909463,1731278889440,-570.79878659,0.0001479,2]
[341909464,1731278889481,-500.0,0.0001479,2]
[341909465,1731278889521,-500.0,0.0001479,2]
[341909466,1731278889561,-500.0,0.0001479,2]
[341909467,1731278889604,-500.0,0.0001479,2]
[341909468,1731278889645,-500.0,0.0001479,2]
[341909469,1731278889702,-275.96026716,0.0001479,2]
[341909470,1731278889744,-409.57928425,0.0001479,2]
[341909471,1731278889786,-1008.0,0.0001479,2]
[341909472,1731278889825,-500.0,0.0001479,2]
[341909473,1731278889864,-500.0,0.0001479,2]
[341909474,1731278889906,-500.0,0.0001479,2]
[341909475,1731278889945,-500.0,0.0001479,2]
[341909476,1731278889984,-151.0,0.0001479,2]
[341909477,1731278890023,-151.0,0.0001479,2]
[341909478,1731278890061,-151.0,0.0001479,2]
[341909479,1731278890101,-151.0,0.0001479,2]
[341909480,1731278890143,-151.0,0.0001479,2]
[341909481,1731278890181,-151.0,0.0001479,2]
[341909482,1731278890220,-151.0,0.0001479,2]
[341909483,1731278890258,-151.0,0.0001479,2]
[341909484,1731278890297,-1949.84,0.0001479,2]
[341909485,1731278890338,-1949.84,0.0001479,2]
[341909486,1731278890380,-1949.84,0.0001479,2]
[341909487,1731278890418,-1949.84,0.0001479,2]
[341909488,1731278890456,-702.12,0.0001479,2]
[341909489,1731278890499,-702.12,0.0001479,2]
[341909490,1731278890541,-702.12,0.0001479,2]
[341909491,1731278890582,-702.12,0.0001479,2]
[341909492,1731278890624,-184.693461,0.0001479,2]
[341909493,1731278890666,-184.693461,0.0001479,2]
[341909494,1731278890709,-184.693461,0.0001479,2]
[341909495,1731278890753,-184.693461,0.0001479,2]